bitfinex/quotes_SOLUSD_20251001
["timestamp","ask_amount","ask_price","bid_price","bid_amount"]
[1759282849422,16.70902608,209.47,209.43,34.75]
[1759282850315,16.70902608,209.47,209.44,37.22]
[1759282851018,16.70902608,209.47,209.45,33.92]
[1759282854634,4.77395331,209.47,209.45,34.6]
[1759282854828,4.77395331,209.47,209.46,3.12395948]
[1759282861529,0.1,209.48,209.47,13.59559401]
[1759282861739,0.1,209.48,209.47,55.1602766]
[1759282863320,0.1,209.48,209.47,51.23955349]
[1759282864520,0.1,209.49,209.47,51.23955349]
[1759282864728,0.1,209.49,209.48,17.39955349]
[1759282868748,4.77281944,209.52,209.49,79.0]
[1759282869042,5.49281944,209.52,209.5,40.90097015]
[1759282869245,5.49281944,209.52,209.51,3.12395948]
[1759282869443,5.49281944,209.52,209.51,40.34395948]
[1759282870832,4.77258626,209.53,209.51,40.34395948]
[1759282871044,5.49258626,209.53,209.52,36.96395948]
[1759282871349,4.77258626,209.53,209.52,36.96395948]
[1759282871832,4.77258626,209.53,209.52,37.64395948]
[1759282872037,4.77258626,209.53,209.52,36.96395948]
[1759282872332,20.8,209.63,209.52,36.96395948]
[1759282872333,0.72,209.64,209.57,20.8]
[1759282872524,0.72,209.63,209.58,72.03955349]
[1759282872725,12.6449875,209.65,209.6,13.59559401]
[1759282873048,0.72,209.64,209.61,37.04395948]
[1759282873245,23.83886303,209.75,209.62,3.12395948]
[1759282873436,0.72,209.66,209.63,50.63955349]
[1759282873643,0.72,209.66,209.64,3.12395948]
[1759282873835,0.72,209.66,209.65,37.04395948]
[1759282874626,4.86941417,209.67,209.65,37.04395948]
[1759282874834,4.86941417,209.67,209.66,3.12395948]
[1759282875029,5.58941417,209.67,209.66,37.02395948]
[1759282875252,5.58941417,209.67,209.66,33.9]
[1759282875589,17.512913,209.67,209.66,14.28884646]
[1759282875760,17.512913,209.67,209.66,48.18884646]
[1759282875942,17.512913,209.67,209.66,33.9]
[1759282877354,17.512913,209.67,209.66,33.88]
[1759282878452,17.512913,209.67,209.66,33.86]
[1759282882659,17.512913,209.67,209.61,79.1]
[1759282882861,0.7,209.66,209.61,79.1]
[1759282883243,16.792913,209.67,209.61,79.79]
[1759282883463,0.71,209.66,209.61,0.69]
[1759282883761,0.71,209.65,209.61,0.69]
[1759282883961,0.71,209.65,209.62,33.82]
[1759282885660,4.77008204,209.64,209.62,33.82]
[1759282886960,4.77008204,209.64,209.62,48.07149655]
[1759282887160,0.71,209.63,209.6,37.2]
[1759282887365,0.71,209.62,209.61,33.82]
[1759282888441,0.71,209.62,209.6,37.2]
[1759282888642,0.71,209.61,209.55,79.1]
[1759282888871,0.71,209.6,209.56,36.94198384]
[1759282889062,0.71,209.59,209.56,33.82]
[1759282889268,5.48144765,209.58,209.57,33.82]
[1759282889477,17.41006679,209.58,209.57,33.82]
[1759282889841,16.70006679,209.58,209.57,33.82]
[1759282890372,17.41006679,209.58,209.57,33.82]
[1759282890679,16.70006679,209.58,209.57,33.82]
[1759282890981,23.85371906,209.62,209.57,33.82]
[1759282891152,0.71,209.58,209.57,33.82]
[1759282891971,0.71,209.6,209.57,33.82]
[1759282892159,0.71,209.59,209.57,33.82]
[1759282892354,0.71,209.59,209.57,112.92]
[1759282894357,4.77144765,209.58,209.57,112.92]
[1759282894685,4.77144765,209.58,209.57,33.82]
[1759282894971,4.77144765,209.58,209.57,34.51]
[1759282896159,4.77144765,209.58,209.57,37.63593108]
[1759282896352,16.69617357,209.63,209.57,37.63593108]
[1759282896553,16.69617357,209.63,209.58,3.81593108]
[1759282896892,0.71,209.62,209.55,14.48035607]
[1759282897172,0.71,209.61,209.56,33.82]
[1759282897472,0.71,209.6,209.56,33.82]
[1759282897684,16.69617357,209.63,209.56,34.51]
[1759282897848,0.71,209.62,209.56,34.51]
[1759282898467,0.71,209.62,209.57,3.12811477]
[1759282898672,17.40767663,209.61,209.58,33.82]
[1759282899265,17.40767663,209.61,209.59,0.69]
[1759282899266,16.69767663,209.61,209.59,0.69]
[1759282899571,16.69767663,209.61,209.6,34.51]
[1759282900369,17.40767663,209.61,209.55,28.0259491]
[1759282900575,17.40767663,209.61,209.56,36.94914713]
[1759282900869,0.71,209.6,209.57,3.12914713]
[1759282901071,0.71,209.6,209.56,34.51]
[1759282901254,0.71,209.6,209.57,36.94919538]
[1759282901454,0.71,209.6,209.57,33.82]
[1759282902077,16.69767663,209.61,209.57,33.82]
[1759282902470,0.71,209.6,209.57,33.82]
[1759282902877,0.71,209.6,209.56,0.69]
[1759282902878,16.69927,209.59,209.58,33.82]
[1759282903254,16.69927,209.59,209.58,36.9505899]
[1759282904773,11.92805,209.59,209.58,36.9505899]
[1759282905668,4.77099236,209.6,209.58,36.9505899]
[1759282905972,4.77099236,209.6,209.59,3.13434547]
[1759282906351,5.48099236,209.6,209.59,36.95434547]
[1759282907081,11.92657164,209.62,209.59,36.95434547]
[1759282907283,0.71,209.61,209.6,33.82]
[1759282907457,0.71,209.61,209.6,112.92]
[1759282907974,0.71,209.61,209.6,150.12]
[1759282908174,5.48076475,209.61,209.6,153.25826386]
[1759282908353,5.48076475,209.61,209.6,119.43826386]
[1759282908557,5.48076475,209.61,209.6,150.12]
[1759282910355,11.92657164,209.62,209.6,150.12]
[1759282910560,12.63657164,209.62,209.6,150.12]
[1759282911281,0.71,209.61,209.6,150.12]
[1759282911579,0.71,209.61,209.6,153.25965086]
[1759282911968,11.92657164,209.62,209.6,153.25965086]
[1759282912296,11.92657164,209.62,209.61,3.13965086]
[1759282914482,4.77030959,209.63,209.61,3.13965086]
[1759282914781,4.77030959,209.63,209.62,36.96185363]
[1759282914962,5.47030959,209.63,209.62,36.96185363]
[1759282915762,4.77030959,209.63,209.62,36.96185363]
[1759282915967,5.47030959,209.63,209.62,3.14185363]
[1759282916279,17.39608357,209.63,209.6,37.2]
[1759282916583,0.7,209.62,209.61,3.14506018]
[1759282917259,2.22410606,209.62,209.54,0.69]
[1759282917475,1.52410606,209.61,209.55,33.82]
[1759282917662,0.7,209.6,209.55,33.82]
[1759282917867,0.7,209.59,209.55,33.82]
[1759282918079,0.7,209.59,209.55,34.51]
[1759282918386,4.77144765,209.58,209.55,34.51]
[1759282918962,4.77144765,209.58,209.56,0.69]
[1759282919268,4.77144765,209.58,209.57,33.82]
[1759282919586,4.77076475,209.61,209.57,34.51]
[1759282919886,4.77076475,209.61,209.58,0.69]
[1759282920061,4.77076475,209.61,209.59,34.51]
[1759282920262,4.77076475,209.61,209.59,33.82]
[1759282920489,16.69702847,209.62,209.59,33.82]
[1759282921683,17.39702847,209.62,209.59,33.82]
[1759282923371,0.7,209.61,209.54,14.92975541]
[1759282923583,0.7,209.6,209.55,33.82]
[1759282923785,0.7,209.59,209.55,33.82]
[1759282924159,0.7,209.58,209.55,33.82]
[1759282924587,1.52410606,209.6,209.55,33.82]
[1759282924763,1.52410606,209.6,209.5,3.93094814]
[1759282924764,0.7,209.57,209.56,33.82]
[1759282925183,0.7,209.57,209.51,0.69]
[1759282925382,16.70166061,209.56,209.51,0.69]
[1759282925585,0.7,209.55,209.51,0.69]
[1759282925772,16.70166061,209.56,209.48,13.59559401]
[1759282925973,0.7,209.54,209.49,0.69]
[1759282926174,0.7,209.53,209.47,4.62094814]
[1759282926381,0.7,209.53,209.48,33.82]
[1759282926686,0.7,209.52,209.48,34.51]
[1759282927077,0.7,209.52,209.49,37.2]
[1759282927581,4.77304185,209.51,209.49,37.2]
[1759282929084,4.77304185,209.51,209.5,3.14906112]
[1759282929987,11.93224608,209.52,209.5,3.14906112]
[1759282930287,11.93224608,209.52,209.51,33.82]
[1759282930867,12.63224608,209.52,209.51,33.82]
[1759282931368,12.63224608,209.52,209.49,37.2]
[1759282931580,12.63224608,209.52,209.38,28.88205122]
[1759282931581,2.22410606,209.51,209.42,0.69]
[1759282931789,19.96999999,209.73,209.46,42.61991715]
[1759282932097,23.82750603,209.85,209.63,13.59559401]
[1759282932098,16.68175968,209.81,209.63,13.59559401]
[1759282932293,0.7,209.79,209.66,0.28432314]
[1759282932467,0.7,209.79,209.67,0.26]
[1759282932670,0.7,209.79,209.68,48.33559401]
[1759282932870,0.7,209.79,209.69,8.14356303]
[1759282933079,0.7,209.79,209.7,0.26]
[1759282933275,0.7,209.79,209.71,34.74]
[1759282933488,16.68414528,209.78,209.71,34.74]
[1759282933868,16.68414528,209.78,209.7,8.14356303]
[1759282933869,0.7,209.77,209.7,7.88356303]
[1759282934078,16.68414528,209.78,209.67,0.26]
[1759282934079,0.7,209.76,209.71,34.72]
[1759282934279,0.7,209.76,209.72,34.72]
[1759282934501,0.7,209.76,209.73,34.72]
[1759282934672,40.51863855,209.78,209.74,34.72]
[1759282934872,0.7,209.77,209.75,34.72]
[1759282935071,40.51863855,209.78,209.76,34.72]
[1759282935294,16.68414528,209.78,209.77,34.72]
[1759282935483,11.91724663,209.78,209.77,34.72]
[1759282935997,12.61724663,209.78,209.77,34.7]
[1759282936196,12.61724663,209.78,209.67,0.28432314]
[1759282936371,12.61724663,209.78,209.69,13.59559401]
[1759282936566,12.61724663,209.78,209.69,13.85559401]
[1759282937073,12.61724663,209.78,209.7,37.46]
[1759282937372,4.76644423,209.8,209.72,13.59559401]
[1759282937577,4.76644423,209.8,209.74,13.59559401]
[1759282937810,4.76644423,209.8,209.75,0.26]
[1759282937978,4.76644423,209.8,209.76,34.96]
[1759282938501,4.76644423,209.8,209.77,0.26]
[1759282938807,4.76644423,209.8,209.78,0.26]
[1759282939097,4.76644423,209.8,209.76,34.7]
[1759282939303,0.1,209.82,209.77,34.7]
[1759282939304,16.78115715,209.82,209.77,34.7]
[1759282939507,17.47115715,209.82,209.78,34.7]
[1759282939715,17.47115715,209.82,209.79,34.68]
[1759282939886,17.47115715,209.82,209.8,34.7]
[1759282940292,16.78115715,209.82,209.8,34.7]
[1759282940494,4.86618241,209.82,209.8,34.7]
[1759282941310,4.86618241,209.82,209.81,34.68]
[1759282942189,4.86618241,209.82,209.77,0.26]
[1759282942402,4.86618241,209.82,209.78,34.68]
[1759282942781,16.78115715,209.82,209.74,0.26]
[1759282942989,0.69,209.81,209.75,34.66]
[1759282943601,0.69,209.81,209.76,34.66]
[1759282943912,0.69,209.8,209.76,34.66]
[1759282945381,4.76667143,209.79,209.76,34.66]
[1759282945576,16.68335001,209.79,209.76,34.66]
[1759282945783,0.69,209.78,209.77,34.62]
[1759282946310,0.69,209.78,209.77,71.8]
[1759282948827,0.69,209.78,209.77,37.18]
[1759282948994,16.68494063,209.77,209.69,37.2]
[1759282949203,0.69,209.76,209.7,71.74]
[1759282950127,0.69,209.76,209.71,34.56]
[1759282951315,16.68653158,209.75,209.71,34.56]
[1759282951624,17.37653158,209.75,209.71,34.56]
[1759282952411,12.60895113,209.75,209.71,34.56]
[1759282954738,17.37653158,209.75,209.71,113.66]
[1759282956033,4.76626118,209.81,209.73,0.28432314]
[1759282956205,4.76626118,209.81,209.75,13.87991715]
[1759282956405,4.76626118,209.81,209.76,0.26]
[1759282956724,16.68180381,209.81,209.74,0.26]
[1759282956931,17.37180381,209.81,209.75,34.66]
[1759282957432,16.68180381,209.81,209.76,0.26]
[1759282957805,17.37180381,209.81,209.77,34.64]
[1759282958027,0.69,209.8,209.73,13.85559401]
[1759282958212,0.69,209.8,209.74,34.64]
[1759282958614,0.69,209.8,209.73,0.26]
[1759282958814,16.68335001,209.79,209.74,34.62]
[1759282959014,17.37335001,209.79,209.74,34.62]
[1759282959530,4.7663032,209.81,209.75,13.85559401]
[1759282959707,4.7663032,209.81,209.76,13.85559401]
[1759282959926,4.7663032,209.81,209.75,13.59559401]
[1759282959927,4.7663032,209.81,209.77,34.88]
[1759282960230,4.7663032,209.81,209.78,0.26]
[1759282960533,4.7663032,209.81,209.79,37.18]
[1759282960740,4.7663032,209.81,209.8,34.64]
[1759282962623,4.86602249,209.82,209.8,34.64]
[1759282963937,5.55602249,209.82,209.8,34.64]
[1759282964128,0.69,209.81,209.79,37.18]
[1759282964314,0.69,209.81,209.8,34.62]
[1759282965139,5.45621705,209.81,209.8,34.62]
[1759282967721,4.76621705,209.81,209.8,34.62]
[1759282968147,5.45621705,209.81,209.8,34.62]
[1759282968444,4.76621705,209.81,209.8,34.62]
[1759282969343,5.45621705,209.81,209.8,34.62]
[1759282971134,5.45621705,209.81,209.8,37.16]
[1759282971342,5.45621705,209.81,209.79,45.00421169]
[1759282971536,0.69,209.8,209.79,45.00421169]
[1759282972041,5.45644423,209.8,209.79,45.00421169]
[1759282972551,17.37255481,209.8,209.72,0.26]
[1759282973049,16.68255481,209.8,209.73,16.70871106]
[1759282973245,16.68255481,209.8,209.74,3.37311705]
[1759282973452,16.68255481,209.8,209.75,16.96871106]
[1759282973650,16.68255481,209.8,209.76,3.37311705]
[1759282973960,16.68255481,209.8,209.77,34.78]
[1759282974154,0.1,209.82,209.78,13.85559401]
[1759282974353,0.1,209.82,209.8,13.59559401]
[1759282974560,0.1,209.82,209.81,48.13559401]
[1759282975255,0.1,209.82,209.81,51.80233194]
[1759282975444,0.1,209.82,209.81,51.80116785]
[1759282976257,0.1,209.82,209.81,56.5673849]
[1759282977047,0.1,209.82,209.81,93.7273849]
[1759282977244,0.1,209.83,209.82,77.78991715]
[1759282977436,0.1,209.83,209.82,88.23356421]
[1759282977759,11.90816423,209.94,209.82,88.23356421]
[1759282978065,11.90659985,209.97,209.89,0.28432314]
[1759282978241,11.90659985,209.97,209.91,13.59559401]
[1759282978559,11.90659985,209.97,209.92,37.7412507]
[1759282978856,0.66,209.96,209.93,3.1212507]
[1759282979043,0.66,209.95,209.94,34.6]
[1759282980038,5.42303881,209.95,209.94,34.6]
[1759282980733,41.14582994,209.95,209.83,28.12239636]
[1759282981063,16.67063585,209.95,209.85,28.62]
[1759282981241,16.67063585,209.95,209.87,13.59559401]
[1759282981441,4.76303881,209.95,209.88,3.66442731]
[1759282981642,4.76303881,209.95,209.9,13.59559401]
[1759282981871,12.00436017,210.01,209.91,38.00010417]
[1759282982037,4.76190476,210.0,209.93,0.28432314]
[1759282982356,4.76190476,210.0,209.95,13.59559401]
[1759282982551,4.76190476,210.0,209.96,3.38010417]
[1759282982860,4.76190476,210.0,209.97,34.66]
[1759282983242,4.76190476,210.0,209.91,42.99]
[1759282983243,0.66,209.99,209.9,0.26]
[1759282983444,0.66,209.99,209.92,13.59559401]
[1759282983754,16.66666666,210.0,209.93,3.10856648]
[1759282984054,16.66666666,210.0,209.94,37.76856648]
[1759282984254,4.76190476,210.0,209.95,3.36856648]
[1759282984467,4.76190476,210.0,209.96,3.10523194]
[1759282984650,4.76190476,210.0,209.97,34.7]
[1759282984864,0.66,209.99,209.97,34.7]
[1759282985048,0.66,209.99,209.94,14.50988181]
[1759282985250,16.66666666,210.0,209.89,28.12239636]
[1759282985251,0.66,209.98,209.89,28.12239636]
[1759282985440,0.66,209.97,209.86,0.26]
[1759282985644,0.66,209.97,209.87,37.80638199]
[1759282985857,0.66,209.96,209.87,34.7]
[1759282986060,0.66,209.95,209.88,34.7]
[1759282986265,17.33142992,209.94,209.89,34.7]
[1759282986469,0.66,209.93,209.9,34.7]
[1759282986765,0.66,209.92,209.9,34.7]
[1759282986961,16.67142992,209.94,209.9,34.7]
[1759282987160,0.66,209.91,209.9,34.7]
[1759282987942,0.66,209.91,209.9,34.68]
[1759282988359,5.42394645,209.91,209.9,34.68]
[1759282988550,5.42394645,209.91,209.83,14.41596748]
[1759282988551,16.67381258,209.91,209.83,14.41596748]
[1759282988762,0.66,209.9,209.84,3.10561313]
[1759282988965,0.66,209.9,209.82,13.59559401]
[1759282989143,0.66,209.9,209.83,3.10586716]
[1759282989345,0.66,209.9,209.84,3.10586716]
[1759282989570,0.66,209.9,209.83,14.41882723]
[1759282989859,0.66,209.9,209.84,37.76555589]
[1759282990051,16.67381258,209.91,209.84,34.66]
[1759282990245,16.67381258,209.91,209.85,13.85559401]
[1759282990246,11.90986613,209.91,209.85,13.85559401]
[1759282991367,0.66,209.97,209.87,13.59559401]
[1759282991667,0.66,209.95,209.86,0.26]
[1759282991857,0.66,209.95,209.87,34.66]
[1759282992547,16.67142992,209.94,209.87,34.66]
[1759282993373,17.33142992,209.94,209.87,34.66]
[1759282994074,0.66,209.93,209.84,13.59559401]
[1759282994250,0.66,209.93,209.86,13.59559401]
[1759282994453,0.66,209.93,209.87,3.10259071]
[1759282994882,4.76371951,209.92,209.87,3.10259071]
[1759282995057,4.76303881,209.95,209.88,13.85559401]
[1759282995252,4.76235831,209.98,209.9,13.59559401]
[1759282995460,4.76235831,209.98,209.92,13.59559401]
[1759282995763,4.76235831,209.98,209.94,13.59559401]
[1759282995963,4.76235831,209.98,209.94,13.85559401]
[1759282996551,16.66702892,210.0,209.94,13.85559401]
[1759282998671,16.66702892,210.0,209.95,71.76]
[1759282998873,17.35702892,210.0,209.95,71.76]
[1759283000953,4.76190476,210.0,209.96,0.26]
[1759283001169,11.90341304,210.03,209.97,0.26]
[1759283001170,4.76166755,210.02,209.97,0.26]
[1759283001381,0.69,210.06,209.98,0.26]
[1759283001576,0.69,210.06,209.99,34.58]
[1759283001784,4.86169688,210.01,209.99,34.58]
[1759283001978,0.69,210.0,209.95,116.24]
[1759283002181,0.69,210.0,209.96,34.58]
[1759283002682,16.76589191,210.01,209.96,34.58]
[1759283002983,17.45589191,210.01,209.96,34.58]
[1759283004062,0.69,210.0,209.96,34.58]
[1759283005683,4.76213153,209.99,209.96,34.58]
[1759283007672,5.45213153,209.99,209.96,34.58]
[1759283008981,0.69,209.98,209.97,34.48]
[1759283009700,16.66746035,209.99,209.95,74.28]
[1759283009855,0.69,209.98,209.96,71.62]
[1759283010057,11.90532882,209.99,209.97,34.48]
[1759283010475,0.69,209.98,209.97,34.48]
[1759283010714,0.69,209.98,209.96,37.14]
[1759283010899,0.69,209.97,209.96,37.14]
[1759283011883,0.69,209.97,209.96,71.62]
[1759283012279,5.45258513,209.97,209.96,71.62]
[1759283013461,4.76258513,209.97,209.96,71.62]
[1759283014457,16.66746035,209.99,209.96,74.72495753]
[1759283014678,16.66746035,209.99,209.96,71.62]
[1759283015080,17.35746035,209.99,209.96,71.62]
[1759283015480,0.69,209.98,209.96,71.62]
[1759283015781,0.69,209.97,209.96,71.62]
[1759283016167,17.35746035,209.99,209.96,71.62]
[1759283016466,4.76258513,209.97,209.96,71.62]
[1759283016665,4.76258513,209.97,209.96,74.72864876]
[1759283018204,11.90532882,209.99,209.96,74.72864876]
[1759283018483,0.69,209.98,209.97,3.10864876]
[1759283020290,5.45235831,209.98,209.97,3.10864876]
[1759283021165,4.76235831,209.98,209.97,3.10864876]
[1759283021365,5.45235831,209.98,209.97,3.10864876]
[1759283021576,4.76235831,209.98,209.97,3.10864876]
[1759283021770,5.45235831,209.98,209.97,3.10864876]
[1759283021976,5.45235831,209.98,209.97,37.50864876]
[1759283022963,17.3582541,209.98,209.85,4.14211949]
[1759283023200,0.69,209.97,209.86,13.59559401]
[1759283023366,0.69,209.96,209.86,13.85559401]
[1759283023564,0.69,209.95,209.86,0.26]
[1759283023763,0.69,209.95,209.85,13.59559401]
[1759283023975,0.69,209.94,209.84,13.59559401]
[1759283024176,0.69,209.93,209.85,34.4]
[1759283025175,16.67301829,209.92,209.85,34.4]
[1759283025993,16.67301829,209.92,209.86,0.26]
[1759283026975,11.90929878,209.92,209.86,13.85559401]
[1759283027193,11.90929878,209.92,209.87,37.14]
[1759283027507,11.90929878,209.92,209.88,34.36]
[1759283027679,4.76349259,209.93,209.88,34.62]
[1759283030998,16.67222407,209.93,209.87,37.14]
[1759283031190,16.67222407,209.93,209.88,34.32]
[1759283031191,0.69,209.92,209.88,34.32]
[1759283031391,0.69,209.91,209.88,34.32]
[1759283031893,4.76417341,209.9,209.88,34.32]
[1759283032099,5.45417341,209.9,209.88,34.32]
[1759283032790,5.45417341,209.9,209.87,37.14]
[1759283032791,4.76417341,209.9,209.87,37.14]
[1759283033190,4.76417341,209.9,209.89,0.5]
[1759283033923,16.67400911,209.91,209.89,34.88]
[1759283034095,17.33400911,209.91,209.89,34.88]
[1759283036012,0.66,209.9,209.89,34.88]
[1759283036199,0.66,209.9,209.89,38.00743403]
[1759283036397,0.66,209.9,209.89,34.88]
[1759283037609,5.42417341,209.9,209.89,34.88]
[1759283038682,17.33460694,209.9,209.87,37.14]
[1759283038902,0.66,209.89,209.87,37.14]
[1759283039291,0.66,209.88,209.87,37.14]
[1759283039906,5.4246274,209.88,209.87,71.46]
[1759283040200,5.4246274,209.88,209.77,8.59184333]
[1759283040201,41.15933294,209.88,209.77,0.26]
[1759283040408,0.66,209.87,209.78,3.12786493]
[1759283040590,0.66,209.86,209.79,3.12786493]
[1759283040790,0.66,209.85,209.8,3.12786493]
[1759283041018,0.66,209.84,209.81,3.12786493]
[1759283041307,0.66,209.83,209.75,0.26]
[1759283041488,0.66,209.83,209.76,34.86828968]
[1759283041688,0.66,209.83,209.77,3.12828968]
[1759283041890,0.66,209.86,209.78,3.38828968]
[1759283042113,4.76485443,209.87,209.79,58.48828968]
[1759283042317,4.76485443,209.87,209.8,16.98388369]
[1759283042488,4.76485443,209.87,209.81,3.38828968]
[1759283042689,4.76485443,209.87,209.82,37.44828968]
[1759283042885,4.76485443,209.87,209.83,3.12828968]
[1759283043202,16.67699051,209.87,209.84,3.12828968]
[1759283043399,11.91213608,209.87,209.85,37.44828968]
[1759283043602,11.91213608,209.87,209.85,34.32]
[1759283044187,0.66,209.86,209.85,34.32]
[1759283044815,0.66,209.86,209.77,7.15565113]
[1759283044990,4.7646274,209.88,209.79,13.59559401]
[1759283045191,4.7646274,209.88,209.8,3.38341934]
[1759283045387,16.67619591,209.88,209.81,3.12341934]
[1759283045592,16.67619591,209.88,209.82,3.12341934]
[1759283045792,17.33619591,209.88,209.83,3.12341934]
[1759283045993,0.66,209.87,209.84,3.12341934]
[1759283046220,0.66,209.87,209.85,34.3]
[1759283047017,16.67619591,209.88,209.85,34.3]
[1759283047315,16.67381258,209.91,209.86,37.14]
[1759283047716,0.66,209.9,209.86,37.14]
[1759283048092,16.67381258,209.91,209.86,37.14]
[1759283048296,0.66,209.9,209.86,37.14]
[1759283048719,16.67381258,209.91,209.86,37.14]
[1759283049019,0.66,209.89,209.86,37.14]
[1759283049321,16.67381258,209.91,209.86,37.14]
[1759283049624,17.33381258,209.91,209.86,37.14]
[1759283050922,0.66,209.9,209.86,37.14]
[1759283051324,0.66,209.89,209.86,37.14]
[1759283052525,23.81851257,209.93,209.86,37.14]
[1759283052526,0.66,209.88,209.86,37.14]
[1759283053417,4.76485443,209.87,209.86,37.14]
[1759283053736,17.33699051,209.87,209.76,14.52376344]
[1759283054020,17.33699051,209.87,209.79,34.28]
[1759283054021,0.66,209.86,209.79,34.28]
[1759283054222,0.66,209.85,209.79,34.28]
[1759283054408,0.66,209.84,209.79,34.28]
[1759283054613,0.66,209.83,209.79,34.28]
[1759283054815,0.66,209.82,209.79,34.28]
[1759283055007,0.66,209.81,209.79,34.28]
[1759283055229,0.66,209.8,209.79,34.28]
[1759283055415,5.42644423,209.8,209.79,34.28]
[1759283055901,5.42644423,209.8,209.77,1843.5451]
[1759283055902,0.66,209.8,209.77,1843.5451]
[1759283056104,0.66,209.86,209.78,34.56]
[1759283056634,0.66,209.88,209.79,0.26]
[1759283056810,0.66,209.86,209.79,0.26]
[1759283057226,0.66,209.86,209.8,37.16]
[1759283057405,0.66,209.86,209.81,34.32]
[1759283057406,16.67857993,209.85,209.81,34.32]
[1759283058015,17.39857993,209.85,209.81,34.32]
[1759283058217,16.67857993,209.85,209.81,34.32]
[1759283058434,17.39857993,209.85,209.81,34.32]
[1759283058829,17.39857993,209.85,209.82,0.26]
[1759283058830,4.76530855,209.85,209.82,0.26]
[1759283059431,11.91200098,209.88,209.82,0.26]
[1759283061536,11.91200098,209.88,209.81,34.32]
[1759283062535,16.67662838,209.88,209.81,34.32]
[1759283062735,23.82086707,209.9,209.82,0.26]
[1759283062736,4.76427558,209.9,209.82,0.26]
[1759283062936,4.76427558,209.9,209.85,20.8]
[1759283063119,0.72,209.89,209.83,12.64566649]
[1759283063320,0.72,209.88,209.84,34.28]
[1759283063633,4.76427558,209.9,209.85,34.34]
[1759283063634,16.67470911,209.9,209.85,34.34]
[1759283063824,16.67470911,209.9,209.86,34.34]
[1759283064326,17.39470911,209.9,209.86,34.34]
[1759283065226,4.76427558,209.9,209.86,34.34]
[1759283065627,4.76427558,209.9,209.87,3.12802788]
[1759283065831,4.76371951,209.92,209.88,3.38802788]
[1759283066030,23.81269823,209.98,209.89,37.72802788]
[1759283066031,4.76303881,209.95,209.89,37.72802788]
[1759283066231,16.67063585,209.95,209.9,37.44802788]
[1759283066422,17.39063585,209.95,209.91,3.12802788]
[1759283066622,17.39063585,209.95,209.92,3.12802788]
[1759283066932,17.39063585,209.95,209.93,37.44802788]
[1759283067135,17.39063585,209.95,209.93,34.32]
[1759283067828,16.67063585,209.95,209.94,37.14]
[1759283068223,17.39063585,209.95,209.94,37.14]
[1759283070638,41.20582994,209.95,209.88,20.8]
[1759283070943,0.72,209.94,209.89,37.387396]
[1759283071118,0.72,209.93,209.9,3.127396]
[1759283071312,16.67063585,209.95,209.91,3.127396]
[1759283071519,0.72,209.94,209.92,34.26]
[1759283071943,0.72,209.93,209.92,34.26]
[1759283072637,5.48349259,209.93,209.92,34.26]
[1759283076041,4.76349259,209.93,209.92,34.26]
[1759283076422,4.76349259,209.93,209.92,37.38938967]
[1759283077033,11.90759704,209.95,209.92,37.38938967]
[1759283077234,11.90759704,209.95,209.92,71.4]
[1759283077426,11.90759704,209.95,209.7,23.79681803]
[1759283077636,13.87991715,209.81,209.77,1709.2833827]
[1759283077841,0.72,209.8,209.77,1709.2833827]
[1759283078032,0.72,209.79,209.77,1683.99567098]
[1759283078221,0.72,209.78,209.77,1615.85795615]
[1759283078532,0.72,209.78,209.77,1588.43360529]